fUSD/lending_fUSD_20250302
["ID","MTS","AMOUNT","RATE_DAILY","PERIOD"]
[355026773,1740873612930,-300.0,0.00014899,2]
[355026774,1740873612955,-3773.6249,0.000149,2]
[355026775,1740873612981,-806.3751,0.000149,2]
[355026776,1740873666358,-300.0,0.00014899,2]
[355026777,1740873666406,-1130.28329337,0.000149,2]
[355026778,1740873666448,-99.71670663,0.000149,2]
[355026785,1740873700027,-340.13919337,0.000149,2]
[355026786,1740873700053,-923.81819697,0.000149,2]
[355026787,1740873700080,-316.32484563,0.000149,2]
[355027097,1740874133373,-207.4007,0.000149,2]
[355027098,1740874133405,-3616.0019,0.000149,2]
[355027099,1740874133437,-751.7065,0.000149,2]
[355027100,1740874133470,-745.7143,0.000149,2]
[355027101,1740874133504,-218.2027,0.000149,2]
[355027102,1740874133539,-449.7083248,0.000149,2]
[355027103,1740874133586,-1308.5138548,0.000149,2]
[355027104,1740874133622,-4680.22057,0.000149,2]
[355027105,1740874133670,-487.10801445,0.000149,2]
[355027106,1740874158293,-300.0,0.00014899,2]
[355027107,1740874158330,-698.40825758,0.000149,2]
[355027114,1740874232073,-225.80134242,0.000149,2]
[355027115,1740874232083,-245.0013678,0.00014999,2]
[355027116,1740874232093,-500.0,0.00014999,2]
[355027117,1740874232102,-417.79885217,0.00014999,2]
[355027118,1740874232115,-113.06106829,0.00014999,2]
[355027119,1740874232125,-634.88963849,0.00015,2]
[355027120,1740874232137,-365.19994533,0.00015,2]
[355027121,1740874232149,-927.61514,0.00015,2]
[355027122,1740874232172,-800.0,0.00015,2]
[355027123,1740874232208,-262.18282224,0.00015,2]
[355027124,1740874232222,-295.44814184,0.00015,2]
[355027125,1740874232396,-9547.05263839,0.00015,2]
[355027126,1740874232408,-3535.23390639,0.00015,2]
[355027127,1740874232466,-1710.68,0.00015,2]
[355027142,1740874237987,-925.1,0.00015,2]
[355027143,1740874238002,-13260.0,0.00015,2]
[355027144,1740874238047,-983.76745006,0.00015,2]
[355027145,1740874238059,-689.32368187,0.00015,2]
[355027146,1740874238071,-7938.6552032,0.00015,2]
[355027147,1740874238150,-1057.35125129,0.00015,2]
[355027148,1740874238162,-29900.79722656,0.00015,2]
[355027149,1740874238172,-20466.13436957,0.00015,2]
[355027150,1740874238199,-1374.5550006,0.00015,2]
[355027151,1740874238211,-10994.09038257,0.00015,2]
[355027152,1740874238247,-25487.25,0.00015,2]
[355027153,1740874238259,-358.33485164,0.00015,2]
[355027154,1740874238272,-819.39997364,0.00015,2]
[355027155,1740874238284,-1723.45869062,0.00015,2]
[355027156,1740874238295,-2785.02013222,0.00015,2]
[355027157,1740874238308,-292772.41654576,0.00015,2]
[355027158,1740874238327,-498.014838,0.00015,2]
[355027159,1740874238347,-449.500001,0.00015,2]
[355027160,1740874238359,-736.57390145,0.00015,2]
[355027161,1740874238372,-1026.92935832,0.00015,2]
[355027178,1740874238384,-400.97885,0.00015,2]
[355027180,1740874238566,-480.891175,0.00015,2]
[355027183,1740874238579,-528.69395831,0.00015,2]
[355027185,1740874238591,-859.54031443,0.00015,2]
[355027188,1740874238610,-4106.6159608,0.00015,2]
[355027198,1740874238700,-1459.44,0.00015,2]
[355027354,1740874240278,-778.55138549,0.00015,2]
[355027367,1740874240404,-655.28295906,0.00015,2]
[355027375,1740874240473,-3202.99621915,0.00015,2]
[355027377,1740874240485,-600.05398889,0.00015,2]
[355027379,1740874240497,-723.24951455,0.00015,2]
[355027870,1740874246386,-8657.28,0.00015,2]
[355028574,1740874324324,186.20892,0.0001485,2]
[355028575,1740874332520,1220.6687175,0.00014699,2]
[355028576,1740874377474,915.5015381,0.00014699,2]
[355028577,1740874422521,686.6261536,0.00014699,2]
[355028578,1740874467600,514.9696152,0.00014699,2]
[355028579,1740874474584,150.0,0.000202,14]
[355028580,1740874512530,386.2272114,0.00014699,2]
[355028581,1740874557483,289.6704085,0.00014699,2]
[355028588,1740874602472,217.2528064,0.00014699,2]
[355028589,1740874647455,162.9396048,0.00014699,2]
[355028590,1740874692557,162.9396048,0.00014699,2]
[355028591,1740874737511,162.9396048,0.00014699,2]
[355028592,1740874782560,162.9396049,0.00014699,2]
[355028593,1740874808724,514.39,0.000202,14]
[355028594,1740874862789,500.0,0.000202,14]
[355028603,1740875040903,250.0,0.00013,2]
[355028615,1740875253336,500.0,0.000202,14]
[355028616,1740875305023,-4241.88664808,0.000149,2]
[355028657,1740875432382,-2815.23252304,0.000149,2]
[355028658,1740875432395,-4097.60392888,0.000149,2]
[355028659,1740875432405,-804.1595,0.000149,2]
[355028660,1740875432415,-745.13,0.0001499,3]
[355028661,1740875432425,-633.61930212,0.00015,2]
[355028662,1740875432439,-44373.19699961,0.00015,2]
[355028663,1740875432495,-14021.5236,0.00015,2]
[355028664,1740875432555,-1101.0,0.00015,2]
[355028665,1740875432566,-2321.23382697,0.00015,2]
[355028666,1740875432580,-387.0,0.00015,2]
[355028701,1740875438174,-5850.44621552,0.00015,2]
[355028708,1740875438232,-658.47843359,0.00015,2]
[355028715,1740875438291,-29753.79404334,0.00015,2]
[355028716,1740875438452,-433.49178807,0.00015,2]
[355028717,1740875438463,-4054.03707509,0.00015,2]
[355028718,1740875438509,-4175.35911836,0.00015,2]
[355028719,1740875438520,-3211.91999948,0.00015,2]
[355028901,1740875440346,-56156.17895683,0.00015,2]
[355028903,1740875440356,-300.0,0.00015,2]
[355028905,1740875440366,-186.20892,0.0001503,2]
[355028907,1740875440377,-186.20893,0.0001535,2]
[355028909,1740875440387,-186.20892,0.0001565,2]
[355028912,1740875440402,-186.20893,0.0001597,2]
[355028914,1740875440411,-186.20892,0.0001628,2]
[355028916,1740875440421,-150.0,0.0001639,2]
[355028918,1740875440431,-150.0,0.00016499,2]
[355028920,1740875440443,-722.81,0.00018504,2]
[355028922,1740875440453,-700.0,0.00018632,3]
[355028924,1740875440462,-930.0,0.00019,2]
[355028926,1740875440472,-450.0,0.0001903,2]
[355028928,1740875440482,-367.0,0.000195,2]
[355028930,1740875440492,-1000.0,0.00019952,2]
[355028932,1740875440502,-500.0,0.000202,2]
[355028934,1740875440511,-172.74,0.00020413,2]
[355028936,1740875440520,-186.28,0.00020483,2]
[355028938,1740875440530,-155.3,0.00020501,2]
[355028940,1740875440539,-22417.44882748,0.00020508,2]
[355028943,1740875440559,-1482.55117252,0.00020508,2]
[355028945,1740875440569,-31.60961323,0.00020568,7]
[355029193,1740875443244,-5190.37522557,0.0001565,2]
[355029195,1740875443255,-118.39038677,0.00020568,7]
[355029197,1740875443265,-250.0,0.0002059,2]
[355029199,1740875443274,-749.0,0.000206,2]
[355029201,1740875443285,-722.81,0.00020767,2]
[355029203,1740875443294,-181.92,0.00021918,2]
[355029205,1740875443304,-274.0,0.00022,2]
[355029207,1740875443314,-1000.0,0.00022446,2]
[355029209,1740875443324,-313.91,0.000226,30]
[355029210,1740875443334,-192.9028213,0.0002302,30]
[355029212,1740875443344,-722.81,0.00023031,2]
[355029214,1740875443354,-186.28,0.00023897,2]
[355029216,1740875443364,-1532.0,0.000242,2]
[355029218,1740875443374,-151.0,0.000242,7]
[355029220,1740875443383,-151.0,0.0002421,7]
[355029222,1740875443394,-151.0,0.0002421,7]
[355029224,1740875443403,-151.0,0.00024457,7]
[355029226,1740875443414,-168.6120684,0.00024457,2]
[355029228,1740875443423,-83.73570144,0.00024457,7]
[355029462,1740875446282,-291.76581532,0.00024457,7]
[355029469,1740875446351,-149.49848324,0.00024457,7]
[355029471,1740875446361,-525.0,0.00024457,7]
[355029473,1740875446370,-10805.73151675,0.00024557,2]
[355029486,1740875446512,-8610.21282052,0.00024557,2]
[355030904,1740876631528,-250.0,0.00019952,2]
[355030905,1740876631539,-195.2,0.000205,2]
[355030906,1740876631799,-194.20760016,0.000205,2]
[355030907,1740876631809,-216.0,0.00020599,2]
[355030908,1740876631818,-6764.38359547,0.000206,2]
[355030938,1740876637405,-1267.94588234,0.000206,2]
[355030939,1740876637418,-965.89492752,0.000206,2]
[355030940,1740876637460,-3336.56301181,0.000206,2]
[355030941,1740876637470,-306.59263875,0.000206,2]
[355030942,1740876637480,-614.38,0.00021822,2]
[355030943,1740876637490,-736.0,0.000221,2]
[355030944,1740876637499,-749.0,0.000221,2]
[355030945,1740876637509,-2944.39626993,0.000229,3]
[355030946,1740876637519,-2944.39626989,0.00023245,3]
[355030947,1740876637529,-2944.39626989,0.0002359,3]
[355030948,1740876637541,-23900.0,0.00023745,2]
[355030949,1740876637550,-172.74,0.00023766,2]
[355030950,1740876637560,-150.0,0.00023794,7]
[355030951,1740876637570,-1000.0,0.00023899,2]
[355030952,1740876637581,-775.81906267,0.00023934,3]
[355031140,1740876639605,-412.21369588,0.00023934,3]
[355031154,1740876639767,-1756.36351134,0.00023934,3]
[355031156,1740876639777,-1000.0,0.00023962,2]
[355031158,1740876639788,-614.38,0.00024086,2]
[355031160,1740876639798,-2944.39626989,0.00024279,3]
[355031162,1740876639807,-1336.7781,0.00024457,2]
[355031163,1740876639817,-1551.789,0.00024457,2]
[355031165,1740876639826,-313.4091,0.00024457,2]
[355031167,1740876639836,-171.030206,0.00024498,2]
[355031169,1740876639846,-1221.389311,0.00024556,2]
[355031171,1740876639855,-9376.9752,0.00024557,2]
[355031172,1740876639865,-2186.8306,0.00024557,2]
[355031174,1740876639875,-500.0,0.00024557,2]
[355031176,1740876639884,-772.7163,0.00024557,2]
[355031178,1740876639893,-62733.94240177,0.00024557,2]
[355031182,1740876639931,-578.243027,0.00024557,2]
[355031388,1740876642611,-676.96199,0.00024557,2]
[355031394,1740876642666,-823.78370028,0.00024557,2]
[355031649,1740876645557,-3488.20500103,0.00024557,2]
[355031651,1740876645569,-1610.66910434,0.00024557,2]
[355031667,1740876645717,-5510.1542467,0.00024557,2]
[355031679,1740876645828,-414.34013882,0.00024557,2]
[355031712,1740876646126,-3372.33539006,0.00024557,2]
[355031714,1740876646136,-2589.8958,0.00024557,2]
[355031716,1740876646146,-5296.17016733,0.00024557,2]
[355033805,1740877831756,-600.92,0.00021744,2]
[355033806,1740877831766,-186.28,0.00023457,2]
[355033807,1740877831776,-1000.0,0.00023464,2]
[355033808,1740877831786,-154.15,0.00023464,2]
[355033809,1740877831797,-500.01,0.00023657,2]
[355033810,1740877831806,-2000.0,0.00023662,2]
[355033811,1740877831815,-8434.6820464,0.00023718,2]
[355033812,1740877831827,-7018.09556041,0.00023718,2]
[355033813,1740877831838,-3325.1216969,0.00023718,2]
[355033814,1740877831851,-2339.071,0.00023718,2]
[355033815,1740877832079,-2783.02969629,0.00023718,2]
[355033816,1740877832090,-150.0,0.00023837,7]
[355033817,1740877832100,-250.0,0.00023854,2]
[355033818,1740877832110,-2453.66355829,0.000239,3]
[355033820,1740877832120,-1198.88443091,0.00023942,2]
[355033822,1740877832131,-2655.0,0.00023942,2]
[355034043,1740877840157,-600.92,0.00024008,2]
[355034045,1740877840168,-193.3839162,0.00024065,2]
[355034047,1740877840178,-1378.0,0.000241,2]
[355034049,1740877840187,-349.33,0.00024103,2]
[355034051,1740877840197,-1847.64895382,0.0002421,3]
[355034054,1740877840209,-606.01460442,0.0002421,3]
[355034055,1740877840219,-150.0,0.00024361,2]
[355034057,1740877840228,-150.0,0.00024365,2]
[355034059,1740877840237,-1819.3332,0.00024457,2]
[355034061,1740877840247,-150.03021,0.00024498,2]
[355034063,1740877840256,-897.2194898,0.00024521,3]
[355034065,1740877840267,-290.43814975,0.00024521,3]
[355034068,1740877840278,-1266.00591869,0.00024521,3]
[355034069,1740877840287,-1987.82398992,0.00024552,2]
[355034333,1740877842760,-451.02,0.0002374,2]
[355034335,1740877842770,-59.96734758,0.00024552,2]
[355034641,1740877846022,-2842.26965,0.00024552,2]
[355037742,1740878708711,802300.0,0.00015,2]
[355037746,1740878864302,-300.0,0.00014999,2]
[355037747,1740878864329,-1700.0,0.00015,2]
[355037811,1740879032127,-300.0,0.00014999,2]
[355037812,1740879032138,-3.94998102,0.00015,2]
[355037813,1740879032228,-44279.02419535,0.00015,2]
[355037814,1740879032240,-17459.29450696,0.00015,2]
[355037815,1740879032252,-254.92913121,0.00015,2]
[355037816,1740879032720,-20422.63338927,0.00015,2]
[355037832,1740879037974,-1004.98749979,0.00015,2]
[355037833,1740879037988,-23990.63471256,0.00015,2]
[355037834,1740879037999,-157.0,0.00016416,2]
[355037835,1740879038010,-150.0,0.000165,2]
[355037836,1740879038020,-150.0,0.000165,2]
[355037837,1740879038031,-2208.29720259,0.000174,2]
[355037838,1740879038040,-2208.29720241,0.00017452,2]
[355037839,1740879038050,-2208.29720241,0.00018003,2]
[355037840,1740879038060,-2208.29720241,0.00018555,2]
[355037841,1740879038069,-2208.29720241,0.00019107,2]
[355037842,1740879038079,-2208.29720241,0.00019659,2]
[355037843,1740879038089,-2208.29720241,0.0002021,2]
[355037844,1740879038099,-2208.29720241,0.00020762,2]
[355037845,1740879038110,-540.82,0.00021268,2]
[355037846,1740879038119,-611.73196186,0.00021314,2]
[355037847,1740879038132,-1596.56524055,0.00021314,2]
[355037848,1740879038142,-2208.29720241,0.00021866,3]
[355037849,1740879038152,-2208.29720241,0.00022417,3]
[355037850,1740879038162,-2208.29720241,0.00022969,3]
[355037851,1740879038172,-317.34263236,0.0002299,2]
[355037852,1740879038193,-227.34736764,0.0002299,2]
[355037853,1740879038203,-544.69,0.0002299,2]
[355037854,1740879038213,-224.42563171,0.00022999,2]
[355037855,1740879038223,-500.0,0.00022999,2]
[355037856,1740879038233,-500.0,0.00022999,2]
[355037857,1740879038244,-184.73581245,0.00022999,2]
[355037858,1740879038255,-15453.6510309,0.00023,2]
[355037859,1740879038312,-18005.72566929,0.00023,2]
[355037860,1740879038324,-254.30679119,0.00023,2]
[355037861,1740879038336,-416.04690249,0.00023,2]
[355038049,1740879040260,-951.0,0.00023,2]
[355038052,1740879040285,-2113.35208833,0.00023,2]
[355038055,1740879040310,-205772.64035018,0.00023,2]
[355038057,1740879040323,-1417.3985,0.00023,2]
[355038058,1740879040396,-2020.53346942,0.00023,2]
[355038059,1740879040419,-1999.9997275,0.00023,2]
[355038060,1740879040486,-2884.84977065,0.00023,2]
[355038061,1740879040499,-367.03000001,0.00023,2]
[355038062,1740879040512,-801.81421915,0.00023,2]
[355038434,1740879044451,-8702.41914163,0.00023,2]
[355038599,1740879046107,-76.95068654,0.00023,2]
[355038601,1740879046118,-619.65000019,0.00023,2]
[355038625,1740879046345,-291.24760273,0.00022999,2]
[355038635,1740879046441,-53.59474323,0.00022999,2]
[355038637,1740879046451,-2470.50811509,0.00023,2]
[355041920,1740879740974,621.1927679,0.000202,14]
[355041936,1740880232267,-513.77,0.00021286,2]
[355041937,1740880232277,-152.291,0.00021508,2]
[355041938,1740880232287,-433.939,0.00021508,2]
[355041939,1740880232340,-251.370003,0.00021508,2]
[355041940,1740880232351,-254.89,0.00021508,2]
[355041941,1740880232363,-507.145,0.00021508,2]
[355041942,1740880232375,-597.206997,0.00021508,2]
[355041943,1740880232385,-1138.64514343,0.00021508,2]
[355041944,1740880232518,-285.41285657,0.00021508,2]
[355041945,1740880232530,-807.0,0.00021508,2]
[355041946,1740880232542,-832.92714343,0.00021508,2]
[355041947,1740880232656,-457.00585657,0.00021508,2]
[355041948,1740880232669,-543.915,0.00021508,2]
[355041949,1740880232679,-1446.703,0.00021508,2]
[355041950,1740880232689,-970.038,0.00021508,2]
[355041951,1740880232702,-768.589,0.00021508,2]
[355041952,1740880232711,-13.60584796,0.00021508,2]
[355042002,1740880238152,-138.61015204,0.00021508,2]
[355042003,1740880238162,-202.54096406,0.00021508,2]
[355042004,1740880238174,-340.03209024,0.00021508,2]
[355042005,1740880238236,-569.4269457,0.00021508,2]
[355042006,1740880238245,-2343.0530543,0.00021508,2]
[355042007,1740880238545,-4821.67992046,0.00021508,2]
[355042163,1740880240252,-439.11004484,0.00021508,2]
[355042166,1740880240264,-1161.44073073,0.00021508,2]
[355042175,1740880240338,-10584.34028796,0.00021508,2]
[355042177,1740880240348,-367.2647775,0.00021508,2]
[355042179,1740880240358,-18766.67699405,0.0002277,2]
[355042181,1740880240370,-418.77259166,0.0002277,2]
[355042197,1740880240520,-4579.90248197,0.0002277,2]
[355042200,1740880240535,-1200.0,0.0002277,2]
[355042202,1740880240547,-786.49262927,0.0002277,2]
[355042216,1740880240676,-1879.83428404,0.0002277,2]
[355042218,1740880240686,-1918.62864096,0.00023,2]
[355042780,1740880246469,-833.8,0.00023,2]
[355042789,1740880246552,-341.57227242,0.00023,2]
[355045991,1740881193099,-184.45,0.00016712,2]
[355046005,1740881432555,-150.0,0.00019399,2]
[355046006,1740881432565,-343.496,0.00019399,2]
[355046007,1740881432575,-552.09,0.00020553,2]
[355046008,1740881432586,-450.0,0.00021031,2]
[355046009,1740881432595,-2029.0,0.00021508,2]
[355046010,1740881432605,-637.89478991,0.00021508,2]
[355046011,1740881432621,-638.10521009,0.00021508,2]
[355046012,1740881432631,-151.393,0.00021508,2]
[355046013,1740881432640,-663.083,0.00021508,2]
[355046014,1740881432651,-644.552,0.00021508,2]
[355046015,1740881432661,-575.705,0.00021508,2]
[355046016,1740881432670,-816.14,0.00021914,2]
[355046017,1740881432680,-1998.0,0.00022,2]
[355046018,1740881432689,-2547.61,0.00022,2]
[355046019,1740881432699,-1397.83,0.00022094,2]
[355046020,1740881432709,-373.42,0.00022142,2]
[355046021,1740881432719,-165.98,0.00022193,2]
[355046022,1740881432729,-425.87,0.00022308,2]
[355046023,1740881432739,-4676.38,0.00022366,2]
[355046024,1740881432751,-1000.0,0.00022381,2]
[355046025,1740881432761,-23900.0,0.00022564,2]
[355046026,1740881432773,-450.0,0.00022609,2]
[355046027,1740881432787,-450.0,0.00022609,2]
[355046028,1740881432798,-150.0,0.00022639,2]
[355046029,1740881432807,-4299.73,0.00022687,2]
[355046030,1740881432818,-525.81,0.00022786,2]
[355046046,1740881432999,-915.6,0.00022786,2]
[355046048,1740881433012,-250.0,0.00022788,2]
[355046050,1740881433022,-552.09,0.00022817,2]
[355046051,1740881433032,-12596.0703,0.000229,2]
[355046053,1740881433043,-265.2677,0.000229,2]
[355046054,1740881433053,-651.16,0.00022904,2]
[355046055,1740881433063,-150.0,0.00022908,2]
[355046056,1740881433073,-169.61660389,0.00022916,2]
[355046057,1740881433083,-500.0,0.00022942,2]
[355046058,1740881433093,-502.91725121,0.0002297,2]
[355046059,1740881433103,-156.68055866,0.00022973,2]
[355046060,1740881433113,-501.59939536,0.00022973,2]
[355046061,1740881433122,-150.0,0.00022994,2]
[355046062,1740881433132,-271724.93709167,0.00023,2]
[355046063,1740881433143,-2233.7960851,0.00023016,2]
[355046064,1740881433156,-186.28,0.00023136,2]
[355046065,1740881433166,-200.0,0.00023151,2]
[355046066,1740881433177,-198.24,0.00023272,2]
[355046067,1740881433186,-150.0,0.00023304,7]
[355046068,1740881433196,-425.87,0.00023424,2]
[355046069,1740881433206,-155.172523,0.00023585,7]
[355046070,1740881433216,-2233.79608503,0.00023614,2]
[355046071,1740881433226,-152.0,0.00023621,3]
[355046072,1740881433237,-1368.0,0.000237,2]
[355046073,1740881433248,-500.0,0.000238,2]
[355046074,1740881433258,-500.0,0.000238,2]
[355046075,1740881433268,-500.0,0.000238,2]
[355046076,1740881433277,-500.0,0.000238,2]
[355046077,1740881433287,-500.0,0.000238,2]
[355046078,1740881433298,-500.0,0.000238,2]
[355046079,1740881433308,-500.0,0.000238,2]
[355046080,1740881433318,-500.0,0.000238,2]
[355046081,1740881433328,-500.0,0.000238,2]
[355046082,1740881433338,-500.0,0.000238,2]
[355046083,1740881433348,-500.0,0.000238,2]
[355046084,1740881433358,-500.0,0.000238,2]
[355046085,1740881433368,-500.0,0.000238,2]
[355046086,1740881433378,-500.0,0.000238,2]
[355046087,1740881433387,-500.0,0.000238,2]
[355046088,1740881433400,-500.0,0.000238,2]
[355046089,1740881433410,-500.0,0.000238,2]
[355046090,1740881433419,-500.0,0.000238,2]
[355046091,1740881433429,-500.0,0.000238,2]
[355046092,1740881433439,-500.0,0.000238,2]
[355046093,1740881433448,-500.0,0.000238,2]
[355046094,1740881433458,-500.0,0.000238,2]
[355046095,1740881433467,-500.0,0.000238,2]
[355046096,1740881433476,-500.0,0.000238,2]
[355046097,1740881433487,-500.0,0.000238,2]
[355046098,1740881433497,-500.0,0.000238,2]
[355046099,1740881433507,-500.0,0.000238,2]
[355046100,1740881433516,-500.0,0.000238,2]
[355046101,1740881433526,-500.0,0.000238,2]
[355046102,1740881433535,-500.0,0.000238,2]
[355046103,1740881433545,-500.0,0.000238,2]
[355046104,1740881433555,-500.0,0.000238,2]
[355046105,1740881433565,-500.0,0.000238,2]
[355046106,1740881433576,-500.0,0.000238,2]
[355046107,1740881433585,-500.0,0.000238,2]
[355046108,1740881433595,-500.0,0.000238,2]
[355046109,1740881433605,-500.0,0.000238,2]
[355046110,1740881433615,-500.0,0.000238,2]
[355046111,1740881433625,-500.0,0.000238,2]
[355046112,1740881433635,-500.0,0.000238,2]
[355046113,1740881433646,-500.0,0.000238,2]
[355046114,1740881433657,-500.0,0.000238,2]
[355046115,1740881433667,-500.0,0.000238,2]
[355046116,1740881433677,-500.0,0.000238,2]
[355046117,1740881433688,-500.0,0.000238,2]
[355046118,1740881433699,-500.0,0.000238,2]
[355046119,1740881433708,-500.0,0.000238,2]
[355046120,1740881433718,-500.0,0.000238,2]
[355046121,1740881433728,-500.0,0.000238,2]
[355046122,1740881433737,-500.0,0.000238,2]
[355046123,1740881433747,-500.0,0.000238,2]
[355046124,1740881433757,-500.0,0.000238,2]
[355046125,1740881433770,-500.0,0.000238,2]
[355046126,1740881433781,-500.0,0.000238,2]
[355046127,1740881433791,-500.0,0.000238,2]
[355046128,1740881433806,-500.0,0.000238,2]
[355046129,1740881433816,-500.0,0.000238,2]
[355046130,1740881433826,-500.0,0.000238,2]
[355046131,1740881433836,-500.0,0.000238,2]
[355046132,1740881433848,-500.0,0.000238,2]
[355046133,1740881433859,-500.0,0.000238,2]
[355046134,1740881433870,-500.0,0.000238,2]
[355046135,1740881433881,-500.0,0.000238,2]
[355046136,1740881433891,-500.0,0.000238,2]
[355046137,1740881433904,-500.0,0.000238,2]
[355046138,1740881433915,-500.0,0.000238,2]
[355046139,1740881433924,-500.0,0.000238,2]
[355046140,1740881433934,-500.0,0.000238,2]
[355046141,1740881433945,-500.0,0.000238,2]
[355046142,1740881433955,-500.0,0.000238,2]
[355046143,1740881433965,-500.0,0.000238,2]
[355046144,1740881433974,-500.0,0.000238,2]
[355046145,1740881433984,-500.0,0.000238,2]
[355046146,1740881433994,-500.0,0.000238,2]
[355046147,1740881434003,-500.0,0.000238,2]
[355046148,1740881434013,-500.0,0.000238,2]
[355046149,1740881434022,-500.0,0.000238,2]
[355046150,1740881434032,-500.0,0.000238,2]
[355046151,1740881434042,-500.0,0.000238,2]
[355046152,1740881434052,-500.0,0.000238,2]
[355046153,1740881434061,-500.0,0.000238,2]
[355046154,1740881434071,-500.0,0.000238,2]
[355046155,1740881434081,-500.0,0.000238,2]
[355046156,1740881434091,-500.0,0.000238,2]
[355046157,1740881434101,-500.0,0.000238,2]
[355046158,1740881434111,-500.0,0.000238,2]
[355046159,1740881434121,-500.0,0.000238,2]
[355046160,1740881434134,-500.0,0.000238,2]
[355046161,1740881434146,-500.0,0.000238,2]
[355046162,1740881434156,-500.0,0.000238,2]
[355046163,1740881434167,-500.0,0.000238,2]
[355046164,1740881434177,-500.0,0.000238,2]
[355046165,1740881434187,-500.0,0.000238,2]
[355046166,1740881434198,-500.0,0.000238,2]
[355046167,1740881434209,-500.0,0.000238,2]
[355046168,1740881434220,-500.0,0.000238,2]
[355046169,1740881434231,-500.0,0.000238,2]
[355046170,1740881434241,-500.0,0.000238,2]
[355046171,1740881434251,-500.0,0.000238,2]
[355046172,1740881434260,-500.0,0.000238,2]
[355046173,1740881434270,-151.0,0.000238,7]
[355046174,1740881434280,-152.566725,0.000238,7]
[355046175,1740881434289,-151.0,0.000238,7]
[355046176,1740881434299,-193.789841,0.000238,7]
[355046177,1740881434309,-151.0,0.000238,7]
[355046178,1740881434319,-159.784676,0.000238,7]
[355046179,1740881434328,-151.0,0.000238,7]
[355046180,1740881434338,-151.0,0.000238,7]
[355046181,1740881434347,-151.0,0.000238,7]
[355046182,1740881434357,-151.784876,0.000238,7]
[355046183,1740881434367,-151.0,0.000238,7]
[355046184,1740881434377,-151.0,0.000238,7]
[355046185,1740881434386,-156.414181,0.000238,7]
[355046186,1740881434397,-299.924558,0.000238,7]
[355046187,1740881434407,-155.366182,0.000238,7]
[355046188,1740881434416,-151.0,0.000238,7]
[355046189,1740881434425,-151.0,0.000238,7]
[355046190,1740881434435,-151.0,0.000238,7]
[355046191,1740881434444,-158.929604,0.000238,7]
[355046192,1740881434454,-194.048075,0.000238,7]
[355046193,1740881434463,-500.0,0.000238,2]
[355046194,1740881434473,-500.0,0.000238,2]
[355046195,1740881434482,-500.0,0.000238,2]
[355046196,1740881434491,-500.0,0.000238,2]
[355046197,1740881434502,-500.0,0.000238,2]
[355046198,1740881434511,-500.0,0.000238,2]
[355046199,1740881434521,-500.0,0.000238,2]
[355046200,1740881434531,-500.0,0.000238,2]
[355046201,1740881434541,-500.0,0.000238,2]
[355046202,1740881434551,-500.0,0.000238,2]
[355046203,1740881434560,-500.0,0.000238,2]
[355046204,1740881434570,-500.0,0.000238,2]
[355046205,1740881434580,-500.0,0.000238,2]